bitfinex/quotes_SOLUSD_20251031
["timestamp","ask_amount","ask_price","bid_price","bid_amount"]
[1761874392753,3.11420369,186.42,186.37,0.71000001]
[1761874393047,3.11420369,186.41,186.37,1e-08]
[1761874393232,0.68,186.43,186.37,0.71000001]
[1761874393429,3.11420369,186.42,186.37,0.71000001]
[1761874393843,18.77581674,186.41,186.37,0.71000001]
[1761874394152,21.89002043,186.41,186.37,0.71000001]
[1761874401041,18.77581674,186.41,186.37,0.71000001]
[1761874404668,21.89002043,186.41,186.37,0.71000001]
[1761874406053,21.89002043,186.41,186.38,3.11420369]
[1761874406054,5.36451907,186.41,186.38,3.11420369]
[1761874406454,5.36451907,186.41,186.39,0.72]
[1761874408441,22.55002043,186.41,186.37,1e-08]
[1761874408656,26.16083995,186.41,186.37,0.72000001]
[1761874408856,5.36451907,186.41,186.37,3.8342037]
[1761874409061,5.36451907,186.41,186.39,3.11420369]
[1761874409352,3.61380001,186.42,186.38,0.72]
[1761874409353,5.3642313,186.42,186.38,3.83420369]
[1761874409553,22.38860957,186.42,186.38,3.83420369]
[1761874409767,18.77480956,186.42,186.39,0.72]
[1761874410355,22.38860957,186.42,186.39,0.72]
[1761874410847,25.50281326,186.42,186.37,3.8342037]
[1761874411049,21.88901325,186.42,186.38,0.72]
[1761874411249,25.50372969,186.42,186.38,0.72]
[1761874411765,26.21372969,186.42,186.38,0.72]
[1761874411956,22.59901325,186.42,186.38,0.72]
[1761874412557,5.36480686,186.4,186.38,0.72]
[1761874415050,5.36451907,186.41,186.38,0.72]
[1761874415448,5.36451907,186.41,186.38,3.83420369]
[1761874415968,5.36451907,186.41,186.39,0.72]
[1761874417676,18.77480956,186.42,186.39,0.72]
[1761874417859,4.01816142,186.41,186.39,0.72]
[1761874418681,5.36480686,186.4,186.39,0.72]
[1761874421873,8.98172885,186.41,186.39,3.83420369]
[1761874422171,5.36455702,186.41,186.39,3.83420369]
[1761874422472,5.36455702,186.41,186.39,0.72]
[1761874422677,8.98232728,186.41,186.39,0.72]
[1761874422881,5.36455702,186.41,186.39,0.72]
[1761874423378,8.98232728,186.41,186.39,0.72]
[1761874423575,5.36455702,186.41,186.39,0.72]
[1761874423752,8.98232728,186.41,186.39,0.72]
[1761874423952,5.36455702,186.41,186.39,0.72]
[1761874424153,8.98232728,186.41,186.39,0.72]
[1761874424356,5.36455702,186.41,186.39,0.72]
[1761874424568,18.77585469,186.41,186.37,0.72000001]
[1761874424745,8.34866752,186.4,186.37,1e-08]
[1761874424948,19.48585469,186.41,186.37,0.72000001]
[1761874425151,5.36509469,186.39,186.37,1e-08]
[1761874426165,6.07509469,186.39,186.37,1e-08]
[1761874426372,7.63896709,186.38,186.37,1e-08]
[1761874427265,13.00434964,186.38,186.37,1e-08]
[1761874429271,15.70738318,186.38,186.37,1e-08]
[1761874429471,13.71434964,186.38,186.37,1e-08]
[1761874431166,25.49621087,186.38,186.37,1e-08]
[1761874431371,30.0184237,186.38,186.37,1e-08]
[1761874432289,29.08996651,186.38,186.37,1e-08]
[1761874432492,1.99303354,186.33,186.32,0.1]
[1761874432781,9.60728224,186.33,186.32,1e-08]
[1761874432982,13.93575627,186.33,186.32,1e-08]
[1761874433182,10.31728224,186.33,186.32,1e-08]
[1761874433360,15.68410454,186.33,186.32,1e-08]
[1761874433558,25.47293223,186.33,186.32,1e-08]
[1761874433775,29.09140626,186.33,186.32,1e-08]
[1761874434659,29.09140626,186.33,186.24,0.1]
[1761874434660,20.592,186.3,186.24,0.1]
[1761874434969,1.99303354,186.25,186.24,0.1]
[1761874435274,10.95591669,186.25,186.24,0.1]
[1761874435474,19.29476078,186.25,186.24,0.1]
[1761874435666,19.29466686,186.25,186.24,0.1]
[1761874436477,15.67619283,186.25,186.24,0.1]
[1761874436858,12.97315929,186.25,186.24,0.1]
[1761874437168,4.01027614,186.25,186.24,0.1]
[1761874437370,9.37940365,186.25,186.24,0.1]
[1761874437571,5.36912751,186.25,186.24,0.1]
[1761874439994,7.36216105,186.25,186.24,0.1]
[1761874440358,8.06216105,186.25,186.24,0.1]
[1761874440558,8.06216105,186.25,186.23,6.95098999]
[1761874440559,25.55470831,186.25,186.23,6.95098999]
[1761874440761,16.47894098,186.24,186.23,6.95098999]
[1761874441182,20.18558579,186.24,186.23,1e-08]
[1761874441376,25.55500159,186.24,186.23,1e-08]
[1761874442686,23.56196805,186.24,186.23,1e-08]
[1761874442877,19.85532324,186.24,186.23,1e-08]
[1761874443182,21.84835678,186.24,186.23,1e-08]
[1761874444774,25.54459172,186.24,186.23,1e-08]
[1761874445384,21.84835678,186.24,186.23,1e-08]
[1761874445557,38.44327703,186.24,186.23,1e-08]
[1761874445761,37.74327703,186.24,186.23,1e-08]
[1761874446389,42.42481704,186.24,186.23,1e-08]
[1761874448068,38.44327703,186.24,186.23,1e-08]
[1761874449300,25.9614158,186.24,186.23,1e-08]
[1761874449485,5.36883925,186.26,186.23,0.72000001]
[1761874449671,5.3685992,186.27,186.24,1.99303354]
[1761874449996,5.36825021,186.29,186.25,1.99303354]
[1761874450485,18.78818686,186.29,186.26,0.72]
[1761874450994,5.36825021,186.29,186.26,0.72]
[1761874452878,13.41925991,186.3,186.26,0.72]
[1761874453073,15.41229345,186.3,186.26,0.72]
[1761874453687,13.41925991,186.3,186.23,1e-08]
[1761874453884,15.41229345,186.3,186.27,0.72]
[1761874454475,13.41925991,186.3,186.27,0.72]
[1761874455686,7.36043196,186.31,186.27,2.71303354]
[1761874455687,5.36739842,186.31,186.27,2.71303354]
[1761874455900,20.592,186.32,186.27,0.72]
[1761874456078,20.592,186.32,186.28,2.69303354]
[1761874456398,1.99303354,186.35,186.29,1.99303354]
[1761874456581,3.97806811,186.34,186.3,1.99303354]
[1761874456776,20.7738878,186.36,186.3,1.99303354]
[1761874456777,18.78085426,186.36,186.31,1.99303354]
[1761874456986,3.9780653,186.35,186.32,1.99303354]
[1761874457200,20.77187246,186.38,186.32,2.69303354]
[1761874457400,20.77187246,186.38,186.33,0.7]
[1761874457401,7.66544894,186.37,186.33,0.7]
[1761874457600,3.97841748,186.36,186.33,2.69303354]
[1761874457795,18.77883892,186.38,186.34,0.7]
[1761874458092,20.77187246,186.38,186.34,0.7]
[1761874458296,1.99303354,186.37,186.34,0.7]
[1761874458494,1.99303354,186.35,186.31,0.7]
[1761874458693,1.99303354,186.34,186.31,0.7]
[1761874459007,5.36653429,186.34,186.31,0.7]
[1761874459819,1.99303354,186.32,186.27,0.7]
[1761874459994,18.78287002,186.34,186.28,0.7]
[1761874460300,9.66359024,186.33,186.28,0.7]
[1761874460504,3.98068387,186.32,186.28,0.7]
[1761874460887,5.36768652,186.3,186.26,0.7]
[1761874461079,5.36768652,186.3,186.25,1.99303354]
[1761874461278,5.36768652,186.3,186.26,0.7]
[1761874461704,5.36768652,186.3,186.26,2.69303354]
[1761874462205,5.36768652,186.3,186.27,0.7]
[1761874462782,5.36768652,186.3,186.27,2.69303354]
[1761874462980,5.36768652,186.3,186.27,0.7]
[1761874463285,5.36768652,186.3,186.28,0.7]
[1761874466405,3.58447426,186.34,186.28,0.7]
[1761874466588,9.35622723,186.33,186.3,1.99303354]
[1761874466796,5.3668223,186.33,186.3,1.99303354]
[1761874466982,5.3668223,186.33,186.31,0.7]
[1761874467182,20.77590356,186.34,186.31,0.7]
[1761874467410,3.99040055,186.33,186.31,0.7]
[1761874468299,5.36711034,186.32,186.29,0.59973354]
[1761874469482,18.78387806,186.33,186.29,0.59973354]
[1761874469687,3.99461374,186.32,186.29,0.59973354]
[1761874470194,3.99461374,186.32,186.3,0.68]
[1761874471207,3.99461374,186.32,186.3,2.67303354]
[1761874471510,3.99461374,186.32,186.31,0.68]
[1761874471712,9.36172408,186.32,186.31,0.68]
[1761874472799,20.592,186.35,186.31,2.67303354]
[1761874473005,7.66331731,186.34,186.31,2.67303354]
[1761874473204,3.9986509,186.33,186.32,0.68]
[1761874473713,9.3654732,186.33,186.32,0.68]
[1761874474797,9.3654732,186.33,186.26,5.36883925]
[1761874475108,4.00114553,186.32,186.29,2.67303354]
[1761874475306,5.3668223,186.33,186.29,2.67303354]
[1761874475507,4.00218546,186.32,186.3,0.68]
[1761874475703,5.3668223,186.33,186.3,0.68]
[1761874475922,4.00218546,186.32,186.3,0.68]
[1761874476133,18.78387806,186.33,186.3,2.67303354]
[1761874476435,4.00214474,186.32,186.3,2.67303354]
[1761874476613,5.3668223,186.33,186.31,0.68]
[1761874477238,5.36661552,186.34,186.31,2.67303354]
[1761874477424,4.00244982,186.33,186.31,2.67303354]
[1761874477627,3.60268887,186.37,186.33,20.592]
[1761874477923,5.36451907,186.41,186.36,1.99303354]
[1761874478140,9.36585282,186.4,186.37,2.67303354]
[1761874478303,5.36486681,186.4,186.37,2.67303354]
[1761874479229,18.77583134,186.41,186.38,1.99303354]
[1761874479423,18.77583134,186.41,186.38,2.67303354]
[1761874480619,18.77583134,186.41,186.38,0.68]
[1761874480819,18.77583134,186.41,186.39,1.99303354]
[1761874481123,5.36424853,186.42,186.4,1.99303354]
[1761874481528,5.36424853,186.42,186.4,2.67303354]
[1761874482408,18.77482679,186.42,186.39,1.99303354]
[1761874482802,13.41057826,186.42,186.39,2.67303354]
[1761874483701,13.41057826,186.42,186.39,0.68]
[1761874483901,13.41057826,186.42,186.39,2.67303354]
[1761874484745,13.41057826,186.42,186.36,0.68]
[1761874484927,4.70899263,186.41,186.36,2.67303354]
[1761874485114,4.70899263,186.41,186.35,1.99303354]
[1761874485115,1.99303354,186.4,186.35,1.99303354]
[1761874485429,1.99303354,186.4,186.34,2.67303354]
[1761874485430,2.71303354,186.4,186.34,2.67303354]
[1761874485629,0.72,186.39,186.34,23.26503354]
[1761874486010,0.72,186.39,186.35,1.99303354]
[1761874486209,5.36538255,186.38,186.35,1.99303354]
[1761874486729,5.36538255,186.38,186.35,2.67303354]
[1761874487313,5.36538255,186.38,186.35,3.79451168]
[1761874487518,3.11451168,186.36,186.29,0.68]
[1761874487716,0.72,186.37,186.32,3.11451168]
[1761874487918,0.72,186.37,186.33,3.79451168]
[1761874488115,3.83451168,186.37,186.25,0.68]
[1761874488426,7.10571173,186.36,186.3,3.11451168]
[1761874488635,3.99120005,186.35,186.3,3.11451168]
[1761874488847,4.71120005,186.35,186.3,3.11451168]
[1761874489159,0.72,186.34,186.3,0.68]
[1761874489435,0.72,186.34,186.3,3.79451168]
[1761874489940,5.3668223,186.33,186.3,3.79451168]
[1761874491009,3.11451168,186.36,186.31,3.79451168]
[1761874491010,0.72,186.36,186.31,3.79451168]
[1761874491212,3.99588193,186.35,186.31,3.79451168]
[1761874491833,3.99588193,186.34,186.31,3.79451168]
[1761874492035,5.36653429,186.34,186.31,3.79451168]
[1761874493320,5.36711034,186.32,186.31,3.79451168]
[1761874493519,18.7848862,186.32,186.27,0.68]
[1761874493723,18.7848862,186.32,186.28,3.11451168]
[1761874493936,19.5048862,186.32,186.28,3.11451168]
[1761874494224,19.5048862,186.32,186.28,3.79451168]
[1761874494530,19.5048862,186.32,186.28,0.68]
[1761874494834,4.72319436,186.31,186.28,3.11451168]
[1761874495035,4.00319436,186.3,186.28,3.11451168]
[1761874496420,4.00319436,186.3,186.29,3.11451168]
[1761874496615,9.37088088,186.3,186.29,3.11451168]
[1761874496937,9.37088088,186.3,186.27,3.11451168]
[1761874497130,5.36768652,186.3,186.27,3.11451168]
[1761874497941,0.72,186.3,186.27,3.11451168]
[1761874498138,4.72492319,186.3,186.27,3.11451168]
[1761874498844,4.72492319,186.3,186.26,24.38651168]
[1761874499038,5.36797466,186.29,186.26,24.38651168]
[1761874499835,5.36797466,186.29,186.27,3.78451168]
[1761874500031,5.36766799,186.31,186.28,3.11451168]
[1761874500230,5.36766799,186.31,186.29,3.11451168]
[1761874500529,5.36766799,186.31,186.29,3.78451168]
[1761874501240,18.78387806,186.33,186.29,3.11451168]
[1761874501432,4.00594815,186.32,186.28,3.11451168]
[1761874501631,4.00594815,186.31,186.28,3.11451168]
[1761874501832,0.72,186.32,186.28,3.78451168]
[1761874502035,4.0061857,186.31,186.28,3.78451168]
[1761874502448,5.36768652,186.3,186.28,3.78451168]
[1761874502648,5.36768652,186.3,186.29,3.11451168]
[1761874502835,5.36768652,186.3,186.28,0.67]
[1761874503036,5.36768652,186.3,186.28,3.78451168]
[1761874503635,5.36768652,186.3,186.28,0.67]
[1761874503957,6.08768652,186.3,186.27,3.11451168]
[1761874504332,5.36768652,186.3,186.27,3.78451168]
[1761874504532,19.50595819,186.31,186.27,3.78451168]
[1761874504727,18.78595819,186.31,186.27,3.11451168]
[1761874504944,18.78595819,186.31,186.28,0.67]
[1761874505147,18.78595819,186.31,186.28,3.78451168]
[1761874505348,5.36739842,186.31,186.28,3.78451168]
[1761874506335,5.36711034,186.32,186.28,3.78451168]
[1761874506536,4.00658557,186.31,186.28,3.78451168]
[1761874506739,5.36711034,186.32,186.29,3.11451168]
[1761874506947,3.60640556,186.35,186.31,3.11451168]
[1761874507153,4.00627714,186.34,186.33,3.11451168]
[1761874507750,5.36513631,186.39,186.33,3.78451168]
[1761874507956,7.70013073,186.38,186.35,3.11451168]
[1761874508255,4.00602959,186.37,186.34,3.11451168]
[1761874508559,4.00602959,186.36,186.34,3.78451168]
[1761874508741,6.0856341,186.38,186.34,3.78451168]
[1761874508937,4.00601397,186.37,186.35,3.11451168]
[1761874509146,4.00601397,186.36,186.34,3.11451168]
[1761874509359,0.72,186.37,186.34,3.11451168]
[1761874509554,4.00638547,186.36,186.34,3.11451168]
[1761874509757,0.72,186.37,186.34,3.11451168]
[1761874509947,4.00638487,186.36,186.34,3.11451168]
[1761874510257,4.00645346,186.35,186.34,3.11451168]
[1761874510432,9.37267345,186.36,186.34,3.11451168]
[1761874510632,4.00645346,186.35,186.34,3.11451168]
[1761874511356,4.00645346,186.35,186.31,20.592]
[1761874511558,4.00645346,186.35,186.31,3.11451168]
[1761874511559,4.00715397,186.34,186.31,3.11451168]
[1761874511754,4.00715397,186.33,186.31,3.11451168]
[1761874512335,5.36711034,186.32,186.29,3.11451168]
[1761874512640,5.36711034,186.32,186.26,5.36859773]
[1761874512641,5.36676353,186.34,186.31,3.11451168]
[1761874512846,4.00769511,186.33,186.32,3.11451168]
[1761874513057,5.36651176,186.35,186.32,3.11451168]
[1761874513267,5.36651176,186.35,186.32,3.78451168]
[1761874513470,4.00720165,186.34,186.31,3.11451168]
[1761874513674,4.00760758,186.33,186.31,3.11451168]
[1761874513874,6.08651176,186.35,186.31,3.11451168]
[1761874514070,7.70355653,186.34,186.32,3.11451168]
[1761874514283,4.00760777,186.33,186.31,0.67]
[1761874514439,5.36651176,186.35,186.31,0.67]
[1761874514762,7.70380508,186.34,186.31,0.67]
[1761874514965,4.00773726,186.33,186.31,0.67]
[1761874515260,5.36651176,186.35,186.31,0.67]
[1761874515461,4.00760698,186.34,186.32,3.11451168]
[1761874515639,5.36597495,186.36,186.33,3.78451168]
[1761874515847,4.00753864,186.35,186.33,3.78451168]
[1761874516150,5.36597495,186.36,186.34,3.11451168]
[1761874516445,5.23221283,186.44,186.35,3.11451168]
[1761874516647,30.79251392,186.43,186.38,3.11451168]
[1761874516863,11.30868197,186.42,186.38,3.11451168]
[1761874517059,11.30868197,186.42,186.34,25.95839846]
[1761874517060,7.70163322,186.41,186.39,3.11451168]
[1761874517272,4.00706242,186.4,186.39,3.80451168]
[1761874517660,6.07394357,186.43,186.39,3.80451168]
[1761874517661,4.00706242,186.42,186.39,3.80451168]
[1761874517849,4.00706242,186.41,186.4,0.69]
[1761874518255,5.36403586,186.43,186.4,0.69]
[1761874518448,4.00477778,186.42,186.4,0.69]
[1761874518658,5.36365586,186.44,186.4,0.69]
[1761874518861,7.69640611,186.43,186.4,0.69]
[1761874519161,4.00477819,186.42,186.41,3.11451168]
[1761874519466,4.00477819,186.42,186.4,3.80451168]
[1761874519779,6.07365586,186.44,186.4,3.80451168]
[1761874519968,7.69474631,186.43,186.4,3.80451168]
[1761874520174,4.00391416,186.42,186.4,3.80451168]
[1761874520476,6.07365586,186.44,186.4,3.80451168]
[1761874520686,13.05758833,186.43,186.4,3.80451168]
[1761874520892,4.00326108,186.42,186.4,3.80451168]
[1761874521188,4.00326108,186.42,186.41,3.11451168]
[1761874521671,3.60704875,186.45,186.41,3.80451168]
[1761874521846,5.36250536,186.48,186.44,3.11451168]
[1761874522049,7.69000681,186.47,186.46,3.11451168]
[1761874522653,13.05279975,186.47,186.46,3.11451168]
[1761874523358,4.00186023,186.47,186.46,3.11451168]
[1761874523563,6.07250443,186.49,186.46,3.11451168]
[1761874523755,6.07250443,186.49,186.47,3.11451168]
[1761874523958,3.79891081,186.53,186.48,3.11451168]
[1761874523959,3.59891081,186.52,186.48,3.11451168]
[1761874524268,3.59891081,186.52,186.44,0.69]
[1761874524269,5.36135535,186.52,186.5,3.11451168]
[1761874524479,6.07135535,186.52,186.49,3.11451168]
[1761874526263,6.07135535,186.52,186.5,3.11451168]
[1761874526264,5.36135535,186.52,186.5,3.11451168]
[1761874526464,5.36135535,186.52,186.48,0.69]
[1761874526664,5.36135535,186.52,186.51,3.11451168]
[1761874527077,0.2,186.53,186.51,3.11451168]
[1761874527270,5.56111423,186.53,186.52,3.11451168]
[1761874528078,5.56111423,186.53,186.51,3.11451168]
[1761874528783,0.2,186.53,186.52,3.11451168]
[1761874530370,0.2,186.53,186.51,0.66]
[1761874530579,5.56110854,186.53,186.51,0.66]
[1761874530774,5.56110854,186.53,186.52,3.11451168]
[1761874531283,0.2,186.53,186.52,3.11451168]
[1761874531472,0.2,186.53,186.52,3.77451168]
[1761874531870,5.56106792,186.53,186.5,0.66]
[1761874532078,3.83451168,186.52,186.47,3.11451168]
[1761874532474,5.3616428,186.51,186.48,3.11451168]
[1761874532867,5.3616428,186.51,186.48,3.77451168]
[1761874533780,5.3616428,186.51,186.48,3.11451168]
[1761874533987,6.0816428,186.51,186.47,3.11451168]
[1761874534364,0.72,186.5,186.47,3.11451168]
[1761874534566,5.36221781,186.49,186.47,3.11451168]
[1761874536295,0.72,186.49,186.45,3.11451168]
[1761874536715,5.56130443,186.53,186.46,0.66]
[1761874537002,0.2,186.53,186.52,3.11451168]
[1761874538606,5.56106792,186.53,186.52,3.11451168]
[1761874540789,0.2,186.53,186.52,3.11451168]
[1761874540983,0.2,186.53,186.52,3.77451168]
[1761874541385,0.2,186.53,186.52,29.72786703]
[1761874541692,0.2,186.53,186.52,24.36651168]
[1761874541893,0.2,186.53,186.51,20.592]
[1761874542093,6.28106792,186.53,186.51,23.70651168]
[1761874542295,5.56106792,186.53,186.51,23.70651168]
[1761874542478,5.56106792,186.53,186.51,3.11451168]
[1761874543572,5.56106792,186.53,186.51,3.77451168]
[1761874544210,5.56106792,186.53,186.52,3.11451168]
[1761874545503,0.2,186.53,186.52,3.11451168]
[1761874546801,0.2,186.53,186.52,3.77451168]
[1761874549507,0.2,186.53,186.52,2.64916773]
[1761874549680,0.2,186.53,186.52,8.01052308]
[1761874550078,0.2,186.53,186.52,2.64916773]
[1761874552009,0.2,186.53,186.52,17.79935077]
[1761874554615,0.2,186.53,186.52,18.3354863]
[1761874554840,0.2,186.53,186.52,18.61980944]
[1761874555020,0.2,186.54,186.53,11.77799542]
[1761874555191,0.2,186.54,186.53,12.43799542]
[1761874555816,0.2,186.54,186.53,10.44882769]
[1761874555993,0.2,186.54,186.53,2.64916773]
[1761874556816,0.2,186.54,186.53,29.13834244]
[1761874557018,0.2,186.54,186.53,28.60223565]
[1761874557219,0.2,186.54,186.53,23.24116773]
[1761874557423,0.2,186.54,186.53,2.64916773]
[1761874557610,0.09391083,186.54,186.53,28.60223565]
[1761874557797,0.09391083,186.54,186.53,38.92717013]
[1761874559107,0.09391083,186.54,186.53,26.61306792]
[1761874559314,0.09391083,186.54,186.53,28.60223565]
[1761874560821,0.09391083,186.54,186.53,39.21149327]
[1761874561325,0.2,186.57,186.54,0.28432314]
[1761874561624,0.2,186.57,186.56,32.36999542]
[1761874562123,0.2,186.57,186.56,33.07999542]
[1761874562306,0.2,186.57,186.56,38.44020125]
[1761874565327,0.2,186.57,186.56,46.68119531]
[1761874565825,0.2,186.63,186.57,0.28432314]
[1761874566125,0.2,186.63,186.59,22.58116773]
[1761874566533,0.2,186.63,186.59,23.29116773]
[1761874566828,0.87,186.6,186.59,20.592]
[1761874567032,6.2290568,186.6,186.55,20.592]
[1761874567235,5.35963125,186.58,186.53,6.07083165]
[1761874567535,5.35963125,186.58,186.56,22.58116773]
[1761874567832,6.02963125,186.58,186.56,22.58116773]
[1761874568035,0.67,186.58,186.56,22.58116773]
[1761874568352,0.67,186.58,186.57,1.98916773]
[1761874568815,0.67,186.58,186.52,71.48882769]
[1761874568816,0.67,186.58,186.55,22.58116773]
[1761874569015,0.67,186.58,186.55,20.592]
[1761874569231,5.35991852,186.57,186.52,82.292]
[1761874569530,5.35991852,186.57,186.52,20.592]
[1761874569730,0.67,186.56,186.54,1.98916773]
[1761874570108,0.67,186.56,186.52,20.592]
[1761874570316,0.67,186.56,186.54,1.98916773]
[1761874570825,0.67,186.56,186.55,1.98916773]
[1761874571006,6.0296511,186.58,186.55,1.98916773]
[1761874571206,3.99913083,186.57,186.56,1.98916773]
[1761874571436,0.67,186.57,186.56,1.98916773]
[1761874572524,5.3596511,186.58,186.56,1.98916773]
[1761874572729,0.67,186.57,186.56,1.98916773]
[1761874572923,0.67,186.57,186.55,1.98916773]
[1761874575639,0.67,186.57,186.53,0.71]
[1761874575815,0.67,186.57,186.55,1.98916773]
[1761874576750,6.02999482,186.57,186.55,1.98916773]
[1761874577128,6.01999482,186.57,186.55,1.98916773]
[1761874577840,0.86,186.6,186.56,1.98916773]
[1761874578026,0.2,186.6,186.59,1.98916773]
[1761874578227,0.2,186.6,186.59,22.58116773]
[1761874578443,0.2,186.6,186.59,23.24116773]
[1761874579241,0.2,186.6,186.59,29.13644614]
[1761874580230,0.2,186.6,186.59,28.60051174]
[1761874580419,0.2,186.6,186.59,23.24116773]
[1761874581339,0.2,186.6,186.59,20.592]
[1761874581519,0.2,186.6,186.59,23.24116773]
[1761874582531,0.86,186.6,186.59,20.592]
[1761874582728,0.2,186.6,186.59,22.58116773]
[1761874585246,0.2,186.6,186.59,28.60051174]
[1761874585934,0.2,186.6,186.59,38.38933943]
[1761874586326,0.2,186.6,186.59,100.08933943]
[1761874588934,0.2,186.6,186.59,100.37366257]
[1761874590327,0.2,186.6,186.59,94.06999542]
[1761874590539,0.2,186.6,186.59,99.42933943]
[1761874590727,0.2,186.6,186.59,100.13933943]
[1761874592456,0.2,186.6,186.59,100.42366257]
[1761874596234,0.2,186.63,186.62,35.73931016]
[1761874596547,0.2,186.63,186.62,99.42847789]
[1761874596864,0.2,186.63,186.62,100.67432613]
[1761874597943,0.2,186.63,186.62,100.95864927]
[1761874599744,0.2,186.65,186.63,10.07315083]
[1761874599946,0.2,186.69,186.64,20.5547803]
[1761874600155,0.2,186.69,186.68,22.58116773]
[1761874600553,0.2,186.69,186.68,33.07999542]
[1761874600743,0.2,186.69,186.68,33.36431856]
[1761874601452,0.2,186.69,186.68,38.72107879]
[1761874602951,0.2,186.69,186.68,36.73191106]
[1761874603154,0.2,186.69,186.68,38.72107879]
[1761874606164,0.2,186.7,186.69,9.78882769]
[1761874606370,0.2,186.7,186.69,13.30796588]
[1761874607265,0.2,186.71,186.69,13.30796588]
[1761874607447,0.2,186.71,186.7,12.48799542]
[1761874607768,0.2,186.71,186.7,17.84418181]
[1761874609571,0.2,186.77,186.76,30.38082769]
[1761874609757,0.2,186.77,186.76,37.72446104]
[1761874610357,0.2,186.77,186.76,32.36999542]
[1761874611367,0.2,186.77,186.76,33.48048092]
[1761874611573,0.2,186.77,186.76,23.69165323]
[1761874611574,0.87,186.77,186.76,23.69165323]
[1761874612157,0.87,186.77,186.76,3.09965323]
[1761874613061,0.87,186.77,186.75,20.592]
[1761874613251,0.67,186.76,186.74,3.09965323]
[1761874613453,0.67,186.76,186.74,20.592]
[1761874613755,0.67,186.76,186.74,3.09965323]
[1761874614069,0.67,186.76,186.74,23.69165323]
[1761874614656,0.67,186.76,186.75,3.09965323]
[1761874615269,0.67,186.76,186.74,3.09965323]
[1761874616680,0.67,186.76,186.75,3.09965323]
[1761874617972,6.02448286,186.76,186.74,3.09965323]
[1761874618384,0.67,186.75,186.74,3.09965323]
[1761874619566,0.2,186.77,186.74,3.09965323]
[1761874619773,0.72,186.76,186.75,3.09965323]
[1761874621863,0.72,186.76,186.74,20.592]
[1761874622071,0.72,186.76,186.75,3.09965323]
[1761874623554,0.2,186.77,186.75,3.09965323]
[1761874623755,0.2,186.77,186.76,3.09965323]
[1761874624073,0.2,186.77,186.76,8.45411885]
[1761874626175,0.2,186.77,186.76,3.09965323]
[1761874628764,0.92,186.77,186.75,3.09965323]
[1761874629289,0.72,186.76,186.75,3.09965323]
[1761874630864,0.72,186.76,186.74,61.7]
[1761874631064,0.72,186.76,186.75,3.09965323]
[1761874636771,0.89,186.77,186.75,3.09965323]
[1761874636968,0.2,186.77,186.76,3.09965323]
[1761874637598,0.2,186.77,186.76,86.09165323]
[1761874637771,0.2,186.77,186.76,85.39165323]
[1761874638668,0.2,186.77,186.76,90.74611885]
[1761874639475,0.2,186.77,186.76,85.39165323]
[1761874639668,0.2,186.77,186.76,82.292]
[1761874639885,0.2,186.77,186.76,85.39165323]
[1761874641374,0.2,186.77,186.76,90.74611885]
[1761874641996,0.69,186.79,186.76,64.79965323]
[1761874642386,0.69,186.81,186.78,3.09965323]
[1761874642591,20.07944493,186.84,186.77,9.78882769]
[1761874642592,4.00293443,186.8,186.77,9.78882769]
[1761874642901,0.69,186.83,186.79,3.09965323]
[1761874643107,4.00254587,186.82,186.81,3.09965323]
[1761874643395,7.6987821,186.82,186.81,3.09965323]
[1761874643587,8.3887821,186.82,186.81,3.09965323]
[1761874644774,8.3887821,186.82,186.8,3.09965323]
[1761874644978,8.3887821,186.81,186.8,3.09965323]
[1761874645293,7.6987821,186.81,186.8,3.09965323]
[1761874646599,8.3887821,186.81,186.8,3.09965323]
[1761874647193,7.6987821,186.81,186.8,3.09965323]
[1761874648105,7.74515281,186.81,186.78,5.35383618]
[1761874648310,8.43587133,186.8,186.77,23.69165323]
[1761874648605,4.00254587,186.79,186.77,23.69165323]
[1761874648776,0.7,186.79,186.77,23.69165323]
[1761874648977,4.00786361,186.78,186.77,3.09965323]
[1761874649172,0.7,186.8,186.77,3.09965323]
[1761874649376,4.00777784,186.79,186.78,3.09965323]
[1761874649802,4.70777784,186.79,186.78,3.09965323]
[1761874650605,4.00777784,186.79,186.78,3.09965323]
[1761874651798,4.00777784,186.79,186.78,3.81965323]
[1761874652002,4.00777784,186.79,186.78,9.1735455]